fUSD/lending_fUSD_20240903
["ID","MTS","AMOUNT","RATE_DAILY","PERIOD"]
[337033934,1725349845963,-299.07844765,0.00015,2]
[337033935,1725349845975,-8046.26506283,0.00015,2]
[337033936,1725349845995,-268.25,0.00015,2]
[337033937,1725349846006,-2372.81520537,0.00015,2]
[337033938,1725349846017,-1917.4034452,0.00015,2]
[337033939,1725349846032,-434.012,0.00015,2]
[337033940,1725349846044,-3168.79943377,0.00015,2]
[337033941,1725349846058,-8843.92475302,0.00015,2]
[337033942,1725349846071,-7416.2350021,0.00015,2]
[337033943,1725349846082,-487.81872767,0.00015,2]
[337033944,1725349846095,-487.94323696,0.00015,2]
[337033945,1725349846107,-9923.04667477,0.00015,2]
[337033946,1725349846124,-1217.64466643,0.00015,2]
[337033947,1725349846136,-1744.32203037,0.00015,2]
[337033948,1725349846148,-417.95823573,0.00015,2]
[337033949,1725349846159,-55489.51273293,0.00015,2]
[337033950,1725349846171,-1904.96994,0.00015,2]
[337033951,1725349846182,-1264.7968584,0.00015,2]
[337033952,1725349846193,-261.60174887,0.00015,2]
[337033953,1725349846208,-1128.75496496,0.00015,2]
[337033954,1725349846222,-1064.73000001,0.00015,2]
[337033955,1725349846235,-1134.13449414,0.00015,2]
[337033956,1725349846246,-341.13191507,0.00015,2]
[337033957,1725349846275,-2763.97217333,0.00015,2]
[337033958,1725349846286,-290.05976315,0.00015,2]
[337033959,1725349846297,-8385.9918445,0.00015,2]
[337033960,1725349846309,-1110.1255479,0.00015,2]
[337033961,1725349846320,-3596.64044679,0.00015,2]
[337033962,1725349846338,-422.91126348,0.00015,2]
[337033963,1725349846350,-547.44,0.00015,2]
[337033964,1725349846361,-1453.49,0.00015,2]
[337033965,1725349846373,-32947.27196235,0.00015,2]
[337033966,1725349846385,-63245.0,0.00015,2]
[337033967,1725349846396,-2701.23101814,0.00015,2]
[337033968,1725349846407,-4694.20147376,0.00015,2]
[337033969,1725349846418,-1531.57713695,0.00015,2]
[337033970,1725350051452,250.0,0.000123,2]
[337033971,1725350197201,535.48,0.00011579,2]
[337033972,1725350384269,5203.38487415,0.00011579,2]
[337033973,1725350497765,384.2536866,0.00013082,2]
[337033974,1725350536149,1195.54,0.00013088,2]
[337033975,1725350598907,240.32,0.00013067,2]
[337033976,1725350621785,1000.0,0.00013061,2]
[337033977,1725350624721,243.5,0.00013061,2]
[337033978,1725350706954,508.7,0.00011326,2]
[337033979,1725350799283,533.25,0.0001299,2]
[337033984,1725350843923,2714.4,0.00013029,2]
[337033985,1725350907880,2425.3,0.00012977,2]
[337033986,1725350908164,711.35,0.00012977,2]
[337033987,1725350908827,158.49,0.00010959,2]
[337033988,1725350913339,347.45,0.00012995,2]
[337033989,1725350927694,-393.95,0.00013108,2]
[337033990,1725350927722,-443.18,0.0001311,2]
[337033991,1725350927747,-2744.23660517,0.00013129,2]
[337033992,1725350927788,-1827.51339483,0.00013129,2]
[337033993,1725350927815,-250.0,0.0001313,2]
[337033994,1725350927842,-1503.85321034,0.0001313,2]
[337033995,1725350927873,-3581.36660517,0.0001313,2]
[337033996,1725350927912,-3581.36660517,0.0001313,2]
[337033997,1725350927943,-3581.36660517,0.0001313,2]
[337033998,1725350927974,-3581.36660517,0.0001313,2]
[337033999,1725350928005,-355.15381129,0.0001313,2]
[337034000,1725350928051,-3581.36660517,0.0001313,2]
[337034001,1725350928090,-3581.36660517,0.0001313,2]
[337034002,1725350928124,-542.79334735,0.0001313,2]
[337034003,1725350928150,-924.58,0.00013175,2]
[337034004,1725350928176,-150.0,0.0001318,2]
[337034005,1725350928202,-1963.99325782,0.00013181,2]
[337034006,1725350928232,-3581.36660517,0.00013181,2]
[337034019,1725351032450,-818.82444517,0.00013181,2]
[337034020,1725351032462,-757.13168339,0.00013181,2]
[337034021,1725351032473,-310.68100845,0.00013181,2]
[337034022,1725351032482,-1027.68995538,0.00013181,2]
[337034023,1725351032510,-967.32104462,0.00013181,2]
[337034024,1725351032519,-250.0,0.00013229,2]
[337034025,1725351032530,-150.99,0.00013229,2]
[337034026,1725351032539,-235.93,0.00013229,2]
[337034027,1725351032549,-150.0,0.00013234,2]
[337034028,1725351032559,-1362.09339655,0.00013235,2]
[337034029,1725351032574,-6478.20660345,0.00013235,2]
[337034030,1725351032583,-656.59,0.00013235,2]
[337034031,1725351032592,-2563.8,0.00013235,2]
[337034033,1725351032601,-179.99,0.00013235,2]
[337034034,1725351032611,-250.0,0.00013244,2]
[337034035,1725351032622,-2000.0,0.00013343,2]
[337034036,1725351032631,-3120.08,0.00013343,2]
[337034037,1725351032640,-250.0,0.00013393,2]
[337034038,1725351032649,-150.0,0.00013488,2]
[337034039,1725351032658,-508.7,0.0001359,2]
[337034040,1725351032667,-171.37,0.00013657,2]
[337034041,1725351032677,-189.98,0.0001368,2]
[337034042,1725351032686,-45.92609321,0.0001368,2]
[337034043,1725351032699,-454.06390679,0.0001368,2]
[337034044,1725351032708,-225.64609321,0.00014082,2]
[337034045,1725351032720,-4040.93390679,0.00014082,2]
[337034046,1725351032730,-925.71424006,0.00014085,2]
[337034047,1725351032745,-711.6,0.00014085,2]
[337034048,1725351032757,-279.69657276,0.00014085,2]
[337034049,1725351032768,-662.54834617,0.00014085,2]
[337034050,1725351032779,-813.83864441,0.00014085,2]
[337034051,1725351032791,-873.1821966,0.00014085,2]
[337034052,1725351032800,-3517.03362226,0.00014089,2]
[337034053,1725351032812,-749.54637774,0.00014089,2]
[337034054,1725351032821,-4266.58,0.00014093,2]
[337034055,1725351032831,-4266.58,0.00014097,2]
[337034056,1725351032840,-4266.58,0.000141,2]
[337034057,1725351032849,-4161.09568897,0.00014104,2]
[337034058,1725351032860,-105.48431103,0.00014104,2]
[337034059,1725351032873,-3544.15195912,0.00014108,2]
[337034060,1725351032895,-660.93496632,0.00014108,2]
[337034064,1725351038072,-61.49307456,0.00014108,2]
[337034065,1725351038082,-336.2291479,0.00014111,2]
[337034066,1725351038095,-3930.3508521,0.00014111,2]
[337034067,1725351038104,-4086.78758399,0.00014115,2]
[337034068,1725351038117,-179.79241601,0.00014115,2]
[337034069,1725351038127,-1745.85758404,0.00014119,2]
[337034070,1725351038138,-2520.72241596,0.00014119,2]
[337034071,1725351038147,-1665.55341182,0.00014122,2]
[337034072,1725351038158,-308.66866659,0.00014122,2]
[337034073,1725351038190,-404.64145571,0.00014122,2]
[337034074,1725351038203,-1887.71646588,0.00014122,2]
[337034075,1725351038388,-1612.80113653,0.00014126,2]
[337034076,1725351038402,-865.69,0.00014126,2]
[337034077,1725351038422,-1788.08886347,0.00014126,2]
[337034078,1725351038433,-4266.58,0.0001413,2]
[337034079,1725351038443,-1920.42768464,0.00014134,2]
[337034081,1725351038454,-277.79427112,0.00014134,2]
[337034083,1725351038467,-2068.35804424,0.00014134,2]
[337034085,1725351038477,-1476.87453859,0.00014137,2]
[337034088,1725351038493,-1531.004925,0.00014137,2]
[337034090,1725351038505,-1258.70053641,0.00014137,2]
[337034092,1725351038519,-735.49586612,0.00014141,2]
[337034096,1725351038542,-3531.08413388,0.00014141,2]
[337034098,1725351038551,-4266.58,0.00014145,2]
[337034100,1725351038560,-4266.58,0.00014148,2]
[337034102,1725351038569,-4266.58,0.00014152,2]
[337034104,1725351038578,-6280.3,0.0001448,2]
[337034106,1725351038587,-503.9333,0.0001448,2]
[337034107,1725351038597,-562.51895093,0.00014529,2]
[337034108,1725351038606,-562.51895091,0.0001457,2]
[337034109,1725351038616,-64508.2028,0.0001458,2]
[337034111,1725351038625,-562.51895091,0.00014611,2]
[337034112,1725351038635,-157.92,0.00014629,2]
[337034113,1725351038644,-562.51895091,0.00014653,2]
[337034114,1725351038653,-1000.0,0.00014693,2]
[337034115,1725351038663,-562.51895091,0.00014694,2]
[337034116,1725351038672,-240.32,0.000147,2]
[337034117,1725351038682,-562.51895091,0.00014735,2]
[337034118,1725351038692,-562.51895091,0.00014776,2]
[337034119,1725351038701,-562.51895091,0.00014818,2]
[337034120,1725351038711,-1407.5022,0.0001485,2]
[337034121,1725351038720,-562.51895091,0.00014859,2]
[337034122,1725351038729,-223.09312921,0.00014889,2]
[337034123,1725351038739,-223.0931292,0.00014891,2]
[337034124,1725351038749,-223.0931292,0.00014892,2]
[337034125,1725351038758,-223.0931292,0.00014894,2]
[337034126,1725351038768,-223.0931292,0.00014895,2]
[337034127,1725351038778,-223.0931292,0.00014897,2]
[337034128,1725351038787,-223.0931292,0.00014898,2]
[337034129,1725351038796,-272.8767,0.000149,2]
[337034130,1725351038806,-223.0931292,0.000149,2]
[337034131,1725351038815,-772.2207411,0.000149,2]
[337034132,1725351038824,-562.51895091,0.000149,2]
[337034133,1725351038834,-62011.5652466,0.0001497,2]
[337034134,1725351038843,-500.0,0.00014973,2]
[337034135,1725351038852,-500.0,0.00014973,2]
[337034136,1725351038862,-200.0,0.00014973,2]
[337034137,1725351038873,-511.8498062,0.00014973,2]
[337034138,1725351038884,-429.1134968,0.00014973,2]
[337034139,1725351038895,-13780.3478326,0.00014979,2]
[337034140,1725351038905,-450.79590342,0.00014979,2]
[337034141,1725351038915,-323.38316747,0.00014979,2]
[337034142,1725351038924,-158474.000075,0.0001498,2]
[337034143,1725351038933,-168.19586544,0.00014989,2]
[337034144,1725351038943,-589.0,0.0001499,2]
[337034145,1725351038953,-733413.0280892,0.0001499,4]
[337034146,1725351038963,-89591.0,0.00014999,2]
[337034147,1725351038972,-1000.0,0.00014999,2]
[337034148,1725351038982,-1000.0,0.00014999,2]
[337034149,1725351038992,-1000.0,0.00014999,2]
[337034150,1725351039002,-1000.0,0.00014999,2]
[337034151,1725351039012,-1000.0,0.00014999,2]
[337034152,1725351039021,-1000.0,0.00014999,2]
[337034153,1725351039031,-536241.43087139,0.00015,2]
[337034154,1725351039040,-190078.61,0.00015,2]
[337034155,1725351039050,-3346612.28048776,0.00015,2]
[337034165,1725351040025,-280.5392675,0.00014551,2]
[337034167,1725351040037,-4182.74251626,0.00015,2]
[337034169,1725351040048,-1950.0,0.00015,2]
[337034170,1725351040079,-285.12435591,0.00015,2]
[337034171,1725351040091,-285.20488188,0.00015,2]
[337034172,1725351040136,-2422.93774298,0.00015,2]
[337034173,1725351040147,-1759.10651,0.00015,2]
[337034174,1725351040158,-325.57201946,0.00015,2]
[337034175,1725351040189,-318.9,0.00015,2]
[337034176,1725351040200,-570.974,0.00015,2]
[337034177,1725351040211,-858.14295306,0.00015,2]
[337034178,1725351040222,-1922.42255462,0.00015,2]
[337034179,1725351040244,-14379.00495764,0.00015,2]
[337034180,1725351040256,-7263.84919311,0.00015,2]
[337034181,1725351040351,-1129.19081524,0.00015,2]
[337034182,1725351040406,-574.03358918,0.00015,2]
[337034197,1725351043404,-515.811067,0.00015,2]
[337034198,1725351043415,-475.33246739,0.00015,2]
[337034200,1725351043426,-565.99524606,0.00015,2]
[337034202,1725351043438,-3145.92623713,0.00015,2]
[337034206,1725351043462,-226140.90373667,0.00015,2]
[337034207,1725351043474,-1560051.46160748,0.00015,2]
[337034208,1725351043495,-5714.85787125,0.00015,2]
[337034210,1725351043830,-356215.30313875,0.00015,2]
[337034211,1725351043842,-15896.8466157,0.00015,2]
[337034212,1725351043853,-8673.86875784,0.00015,2]
[337034213,1725351043865,-742.96054236,0.00015,2]
[337034214,1725351043880,-9351.87391616,0.00015,2]
[337034216,1725351116383,7368.8746,0.00013081,2]
[337034217,1725351384154,457.83,0.00011993,2]
[337034218,1725351597200,550.0,0.00011,2]
[337034219,1725351598316,600.0,0.00013,2]
[337034220,1725351627074,356.13,0.00013,2]
[337034221,1725351888539,434.93,0.00011308,2]
[337034222,1725351909086,421.59005877,0.00013,2]
[337034223,1725351929949,600.0,0.000101,2]
[337034224,1725352031002,250.0,0.000123,2]
[337034225,1725352096092,157.79,0.00010959,2]
[337034249,1725352232184,-250.0,0.00013204,2]
[337034250,1725352232194,-250.0,0.00013207,2]
[337034252,1725352232203,-235.02,0.00013213,2]
[337034254,1725352232215,-164.98,0.00013213,2]
[337034256,1725352232224,-462.29,0.00013224,2]
[337034257,1725352232233,-200.0,0.00013233,2]
[337034258,1725352232242,-300.0,0.0001324,2]
[337034259,1725352232251,-238.73042613,0.00013241,2]
[337034260,1725352232295,-991.0,0.00013241,2]
[337034261,1725352232306,-2944.32227028,0.00013241,2]
[337034262,1725352232357,-2019.02952842,0.00013241,2]
[337034263,1725352232418,-500.0,0.00013241,2]
[337034266,1725352238249,-2123.8997036,0.00013241,2]
[337034267,1725352238306,-558.11102833,0.00013241,2]
[337034268,1725352238317,-794.86802,0.00013241,2]
[337034269,1725352238362,-6319.61455958,0.00013241,2]
[337034270,1725352238372,-600.0,0.00013241,2]
[337034271,1725352238381,-160.17,0.00013251,2]
[337034272,1725352238391,-434.93,0.00013572,2]
[337034273,1725352238400,-150.99,0.00013572,2]
[337034274,1725352238409,-222.0,0.00013881,2]
[337034275,1725352238419,-155.76,0.00013882,2]
[337034276,1725352238432,-1697.89,0.00013882,2]
[337034277,1725352238442,-155.76,0.00013885,2]
[337034278,1725352238452,-155.76,0.00013889,2]
[337034279,1725352238461,-1714.50645897,0.00013889,2]
[337034280,1725352238478,-519.07829482,0.00013889,2]
[337034281,1725352238501,-2209.48524621,0.00013889,2]
[337034282,1725352238511,-155.76,0.00013893,2]
[337034283,1725352238521,-155.76,0.00013896,2]
[337034284,1725352238530,-155.76,0.000139,2]
[337034285,1725352238539,-155.76,0.00013904,2]
[337034286,1725352238549,-155.76,0.00013907,2]
[337034287,1725352238558,-155.76,0.00013911,2]
[337034288,1725352238570,-155.76,0.00013915,2]
[337034289,1725352238580,-155.76,0.00013918,2]
[337034290,1725352238590,-155.76,0.00013922,2]
[337034291,1725352238599,-155.76,0.00013926,2]
[337034292,1725352238608,-155.76,0.00013929,2]
[337034293,1725352238617,-155.76,0.00013933,2]
[337034294,1725352238626,-155.76,0.00013937,2]
[337034295,1725352238636,-155.76,0.0001394,2]
[337034296,1725352238645,-155.76,0.00013944,2]
[337034297,1725352238654,-155.76,0.00013947,2]
[337034298,1725352238664,-155.76,0.00013951,2]
[337034299,1725352238673,-1083.3413,0.00014048,2]
[337034300,1725352238683,-159.59,0.00014183,2]
[337034301,1725352238692,-1946.14687928,0.00014198,2]
[337034302,1725352238704,-1862.04312072,0.00014198,2]
[337034303,1725352238713,-357.23,0.000142,2]
[337034304,1725352238722,-151.17,0.000142,2]
[337034305,1725352238732,-3759.37,0.0001426,2]
[337034306,1725352238741,-222.0,0.0001439,2]
[337034307,1725352238751,-1141.9473,0.0001448,2]
[337034309,1725352238760,-420.0,0.00014516,2]
[337034310,1725352238769,-1000.0,0.00014593,2]
[337034312,1725352238778,-854.0,0.000146,2]
[337034314,1725352238788,-18.85771098,0.00014641,2]
[337034315,1725352238799,-139.06228902,0.00014641,2]
[337034316,1725352238808,-420.98019126,0.00014672,2]
[337034317,1725352238818,-252.81811091,0.0001475,2]
[337034318,1725352238841,-4618.15708909,0.0001475,2]
[337034319,1725352238851,-5945.598,0.00014776,2]
[337034320,1725352238861,-1596.009,0.00014776,2]
[337034321,1725352238870,-4704.15184783,0.000148,2]
[337034322,1725352238880,-150.0,0.000148,2]
[337034323,1725352238891,-540.26226303,0.000148,2]
[337034324,1725352238902,-464.56,0.0001484,3]
[337034325,1725352238911,-185123.72576949,0.0001485,2]
[337034326,1725352238921,-420.54618,0.0001485,2]
[337034327,1725352238931,-400.0,0.00014864,2]
[337034328,1725352238942,-33262.9085613,0.0001489,2]
[337034329,1725352238951,-600.0,0.00014896,2]
[337034330,1725352238960,-359.31463052,0.00014899,2]
[337034331,1725352238972,-500.88433714,0.00014899,2]
[337034332,1725352238983,-7500.0,0.000149,2]
[337034333,1725352238992,-38942.5953,0.000149,2]
[337034334,1725352239001,-36918.0428,0.000149,2]
[337034335,1725352239011,-56734.209,0.000149,2]
[337034336,1725352239021,-500.0,0.000149,2]
[337034337,1725352239031,-1925.0,0.000149,2]
[337034338,1725352239040,-500.0,0.00014973,2]
[337034339,1725352239049,-503.19682359,0.00014973,2]
[337034340,1725352239058,-500.0,0.00014973,2]
[337034341,1725352239068,-19007.3763208,0.0001498,2]
[337034342,1725352239077,-95036.8816038,0.0001498,2]
[337034343,1725352239086,-61773.9730425,0.00014989,2]
[337034344,1725352239095,-163.34208766,0.00014996,2]
[337034345,1725352239104,-150.0,0.00014998,2]
[337034346,1725352239113,-150.0,0.00014998,2]
[337034347,1725352239122,-150.0,0.00014998,2]
[337034348,1725352239132,-150.0,0.00014998,2]
[337034349,1725352239143,-150.0,0.00014998,2]
[337034350,1725352239152,-1000.0,0.00014999,2]
[337034351,1725352239161,-1000.0,0.00014999,2]
[337034352,1725352239171,-1000.0,0.00014999,2]
[337034353,1725352239179,-1000.0,0.00014999,2]
[337034354,1725352239188,-1000.0,0.00014999,2]
[337034355,1725352239197,-1000.0,0.00014999,2]
[337034356,1725352239206,-1066.20343453,0.00014999,5]
[337034357,1725352239215,-1066.20343453,0.00014999,5]
[337034358,1725352239225,-1066.20343453,0.00014999,5]
[337034359,1725352239234,-1066.20343453,0.00014999,5]
[337034360,1725352239244,-1066.20343453,0.00014999,5]
[337034361,1725352239254,-1066.20343453,0.00014999,5]
[337034362,1725352239263,-1066.20343453,0.00014999,5]
[337034363,1725352239273,-1066.20343451,0.00014999,5]
[337034364,1725352239282,-1000.0,0.00014999,2]
[337034365,1725352239292,-41979.22041902,0.00014999,2]
[337034372,1725352243193,-507.53028692,0.00014999,2]
[337034373,1725352243294,-13057.23584385,0.00014999,2]
[337034374,1725352243305,-1044.08377648,0.00014999,2]
[337034375,1725352243316,-590.0,0.00014999,2]
[337034376,1725352243327,-3484.0,0.00014999,2]
[337034377,1725352243337,-3125.5,0.00014999,2]
[337034378,1725352243371,-423.95581672,0.00014999,2]
[337034379,1725352243382,-5965.95999999,0.00014999,2]
[337034382,1725352244405,-1257.99548884,0.00014999,2]
[337034383,1725352244428,-9756.0,0.00014999,2]
[337034384,1725352244439,-1160.60801783,0.00014999,2]
[337034385,1725352244449,-500.0,0.00014999,2]
[337034386,1725352244464,-21642.8178528,0.00014999,2]
[337034387,1725352244475,-357.69482547,0.00014999,2]
[337034388,1725352244485,-319.88,0.00014999,2]
[337034404,1725352246238,-2369.47405088,0.00014999,2]
[337034407,1725352246252,-709.397146,0.00014999,2]
[337034416,1725352246350,-1725.03918942,0.00014999,2]
[337034418,1725352246359,-616.0,0.00015,2]
[337034420,1725352246368,-12332.96081058,0.00015,2]
[337034427,1725352246443,-350.36259932,0.00015,2]
[337034428,1725352334713,150.0,0.00011,2]
[337034429,1725352349264,300.0,0.00013,2]
[337034431,1725352404437,414.84,0.00012074,2]
[337034432,1725352441642,1291.12284491,0.00012,30]
[337034433,1725352455310,400.0,0.00013,2]
[337034434,1725352468649,200.0,0.00013,2]
[337034435,1725352475861,200.0,0.00013,2]
[337034436,1725352483114,200.0,0.00013,2]
[337034437,1725352489546,188.5,0.00013,2]
[337034438,1725352496246,350.0,0.00013,2]
[337034439,1725352635595,156.84,0.00010959,2]
[337034440,1725352737842,201.95,0.00011122,2]
[337034442,1725352972338,418.31,0.00011918,2]
[337034444,1725353173499,160.74,0.00010959,2]
[337034451,1725353432385,-300.0,0.00013499,2]
[337034452,1725353432395,-14484.1989045,0.000135,2]
[337034453,1725353432439,-836.89298034,0.000135,2]
[337034454,1725353432451,-7098.22734583,0.000135,2]
[337034455,1725353432464,-2080.68076933,0.000135,2]
[337034456,1725353432474,-219.31923067,0.0001369,2]
[337034457,1725353432486,-8942.66232885,0.0001369,2]
[337034458,1725353432497,-886.55,0.0001369,2]
[337034459,1725353432552,-300.75376989,0.0001369,2]
[337034460,1725353432564,-734.6075021,0.0001369,2]
[337034461,1725353432610,-12806.10716849,0.0001369,2]
[337034462,1725353432620,-250.0,0.00013709,2]
[337034463,1725353432630,-250.0,0.00013714,2]
[337034464,1725353432640,-250.0,0.00013731,2]
[337034465,1725353432649,-157.58,0.00013734,2]
[337034466,1725353432659,-1000.0,0.0001379,2]
[337034467,1725353432672,-324.44,0.00013812,2]
[337034468,1725353432681,-150.99,0.00013863,2]
[337034469,1725353432691,-150.0,0.00013863,2]
[337034470,1725353432701,-206.99693111,0.00013885,2]
[337034471,1725353432713,-281.72306889,0.00013885,2]
[337034472,1725353432724,-591.87,0.00013885,2]
[337034473,1725353432733,-159.59,0.00013888,2]
[337034474,1725353432742,-150.0,0.00013888,2]
[337034475,1725353432753,-274.52,0.00013888,2]
[337034477,1725353432762,-150.99,0.00013902,2]
[337034479,1725353432771,-150.99,0.00013902,2]
[337034481,1725353432781,-499.99,0.00013904,2]
[337034482,1725353432791,-172.58,0.0001391,2]
[337034483,1725353432801,-208.14,0.00014027,2]
[337034484,1725353432810,-418.31,0.00014181,2]
[337034485,1725353432819,-790.96,0.00014441,2]
[337034486,1725353432829,-150.0,0.00014503,2]
[337034487,1725353432838,-19956.58,0.00014504,2]
[337034488,1725353432851,-5263.0507822,0.00014504,2]
[337034489,1725353432864,-903.92013879,0.00014504,2]
[337034498,1725353438557,-11827.20907901,0.00014504,2]
[337034499,1725353438567,-791.64,0.00014541,2]
[337034500,1725353438577,-867.11,0.00014541,2]
[337034501,1725353438586,-791.64,0.00014541,2]
[337034502,1725353438595,-791.64,0.00014541,2]
[337034503,1725353438608,-973.46784647,0.0001474,2]
[337034504,1725353438618,-1888.0631,0.0001475,2]
[337034505,1725353438627,-286.7845,0.0001475,2]
[337034506,1725353438636,-1500.0,0.00014764,2]
[337034507,1725353438645,-274.44675419,0.00014776,2]
[337034540,1725353439185,-4544.16824581,0.00014776,2]
[337034542,1725353439194,-1482.345,0.00014776,2]
[337034544,1725353439203,-280.45362251,0.00014777,2]
[337034545,1725353439212,-150.0,0.00014782,2]
[337034548,1725353439222,-1500.0,0.00014784,2]
[337034550,1725353439231,-420.0,0.00014796,2]
[337034552,1725353439240,-1500.0,0.00014816,2]
[337034553,1725353439249,-150.0,0.00014818,2]
[337034556,1725353439259,-150.0,0.00014847,2]
[337034557,1725353439268,-1523.37365,0.0001485,2]
[337034559,1725353439277,-3794.68,0.00014867,2]
[337034561,1725353439287,-1500.0,0.00014869,2]
[337034562,1725353439296,-296.98310574,0.0001489,2]
[337034563,1725353439305,-7534.4105,0.0001489,2]
[337034564,1725353439314,-150.0,0.00014919,2]
[337034565,1725353439323,-151.54817037,0.00014928,2]
[337034566,1725353439333,-150.0,0.00014958,2]
[337034567,1725353439342,-150.0,0.00014968,2]
[337034568,1725353439352,-169.36416212,0.00014973,2]
[337034584,1725353439518,-500.0,0.00014973,2]
[337034586,1725353439528,-16127.4708176,0.0001498,2]
[337034588,1725353439538,-10159.06998339,0.00014989,2]
[337034614,1725353440495,-765.68138899,0.00014989,2]
[337034615,1725353440515,-3186.78559302,0.00014989,2]
[337034616,1725353440525,-3604.04419721,0.0001499,2]
[337034617,1725353440616,-898.9482136,0.0001499,2]
[337034618,1725353440673,-31783.81692879,0.0001499,2]
[337034619,1725353440682,-3072.273026,0.00014998,2]
[337034620,1725353440692,-187.5483923,0.00014998,2]
[337034621,1725353440701,-1000.0,0.00014999,2]
[337034622,1725353440711,-1000.0,0.00014999,2]
[337034623,1725353440722,-1000.0,0.00014999,2]
[337034624,1725353440732,-1000.0,0.00014999,2]
[337034625,1725353440741,-1000.0,0.00014999,2]
[337034626,1725353440750,-1000.0,0.00014999,2]
[337034627,1725353440760,-3000.0,0.00014999,2]
[337034628,1725353440769,-3000.0,0.00014999,2]
[337034629,1725353440778,-3000.0,0.00014999,2]
[337034630,1725353440789,-3000.0,0.00014999,2]
[337034631,1725353440798,-3000.0,0.00014999,2]
[337034632,1725353440807,-3000.0,0.00014999,2]
[337034633,1725353440817,-3000.0,0.00014999,2]
[337034634,1725353440826,-3000.0,0.00014999,2]
[337034635,1725353440835,-3000.0,0.00014999,2]
[337034636,1725353440844,-3000.0,0.00014999,2]
[337034637,1725353440853,-3000.0,0.00014999,2]
[337034638,1725353440863,-3000.0,0.00014999,2]
[337034639,1725353440872,-633.03651199,0.00014999,2]
[337034640,1725353440881,-654.0,0.00015,2]
[337034641,1725353440891,-292871.75020665,0.00015,2]
[337034642,1725353440900,-2867310.33406298,0.00015,2]
[337034643,1725353440921,-104628.36954694,0.00015,2]
[337034644,1725353440947,-398.62975953,0.00015,2]
[337034645,1725353440957,-1489.433276,0.00015,2]
[337034671,1725353443357,-1912.67514071,0.00015,2]
[337034672,1725353443413,-900.0,0.00015,2]
[337034673,1725353443426,-6388.382,0.00015,2]
[337034674,1725353443470,-2734.9,0.00015,2]
[337034725,1725353444857,-296.98310568,0.00014891,2]
[337034726,1725353444866,-8522.3079459,0.00015,2]
[337034727,1725353444877,-28449.13594169,0.00015,2]
[337034728,1725353445005,-23018.06022655,0.00015,2]
[337034731,1725353446404,-1336.21180422,0.00015,2]
[337034732,1725353446415,-7616.32,0.00015,2]
[337034733,1725353446429,-2743.03729639,0.00015,2]
[337034734,1725353446533,-498.98172842,0.00015,2]
[337034735,1725353446545,-1600.26692136,0.00015,2]
[337034736,1725353446557,-5905.6878,0.00015,2]
[337034737,1725353446570,-625.92500001,0.00015,2]
[337034738,1725353446607,-39623.6796389,0.00015,2]
[337034739,1725353446631,-436.9539724,0.00015,2]
[337034740,1725353446654,-11695.67896671,0.00015,2]
[337034743,1725353450087,14703.5118653,0.00011781,7]
[337034744,1725353502712,422.47,0.00011737,2]
[337034745,1725353651298,500.0,0.000123,2]
[337034746,1725353685728,11504.0,0.000104,5]
[337034747,1725353809468,159.24,0.00010959,2]
[337034749,1725354011390,474.36,0.0001169,2]
[337034751,1725354294801,173.63,0.00010959,2]
[337034752,1725354540389,-171.917184,0.00013361,2]
[337034753,1725354540417,-171.91718399,0.00013388,2]
[337034754,1725354540444,-250.0,0.00013419,2]
[337034755,1725354540472,-200.0,0.00013447,2]
[337034756,1725354540499,-228.59,0.0001346,2]
[337034757,1725354540527,-393.36254883,0.00013461,2]
[337034761,1725354589815,475.4,0.00011726,2]